fUST/lending_fUST_20240304
["ID","MTS","AMOUNT","RATE_DAILY","PERIOD"]
[316466328,1709491833912,-159.04459166,0.00022574,2]
[316466330,1709491833922,-1014.35894718,0.00022901,2]
[316466332,1709491833931,-2324.54578161,0.00022911,2]
[316466334,1709491833940,-384.05601891,0.00023,2]
[316466335,1709491833949,-620.24233084,0.00023794,2]
[316466337,1709491833958,-200.0,0.000238,2]
[316466339,1709491833970,-308.01,0.000239,2]
[316466341,1709491833979,-307.46739097,0.000239,2]
[316466343,1709491833988,-12046.51641777,0.00023995,5]
[316466345,1709491833998,-500.0,0.00023996,2]
[316466347,1709491834007,-500.0,0.00023996,2]
[316466349,1709491834016,-500.0,0.00023996,2]
[316466351,1709491834026,-500.0,0.00023997,2]
[316466353,1709491834036,-204.49,0.00023997,2]
[316466355,1709491834045,-500.0,0.00023997,2]
[316466357,1709491834055,-500.0,0.00023997,2]
[316466359,1709491834064,-500.0,0.00023997,2]
[316466361,1709491834074,-6913.605584,0.00023998,2]
[316466363,1709491834083,-527.85698207,0.00023998,2]
[316466365,1709491834093,-15928.06357623,0.00023998,2]
[316466367,1709491834102,-155.07598723,0.00023998,2]
[316466369,1709491834111,-155.07598723,0.00023998,2]
[316466371,1709491834121,-176.2238837,0.00023998,2]
[316466373,1709491834130,-827.01050306,0.00023998,2]
[316466375,1709491834140,-500.0,0.00023998,2]
[316466377,1709491834150,-638.4,0.00023998,2]
[316466379,1709491834159,-500.0,0.00023998,2]
[316466381,1709491834169,-276.62199483,0.00023998,2]
[316466383,1709491834178,-500.0,0.00023998,2]
[316466385,1709491834187,-500.0,0.00023999,2]
[316466387,1709491834196,-500.0,0.00023999,2]
[316466389,1709491834206,-500.0,0.00023999,2]
[316466390,1709491834217,-500.0,0.00023999,2]
[316466392,1709491834226,-500.0,0.00023999,2]
[316466394,1709491834236,-500.0,0.00023999,2]
[316466396,1709491834246,-500.0,0.00023999,2]
[316466398,1709491834255,-500.0,0.00023999,2]
[316466400,1709491834264,-500.0,0.00023999,2]
[316466402,1709491834273,-500.0,0.00023999,2]
[316466404,1709491834282,-500.0,0.00023999,2]
[316466406,1709491834291,-500.0,0.00023999,2]
[316466408,1709491834301,-500.0,0.00023999,2]
[316466410,1709491834311,-500.0,0.00023999,2]
[316466412,1709491834321,-500.0,0.00023999,2]
[316466414,1709491834330,-500.0,0.00023999,2]
[316466416,1709491834339,-500.0,0.00023999,2]
[316466418,1709491834348,-473.55225151,0.00023999,2]
[316466419,1709491834357,-500.0,0.00023999,2]
[316466421,1709491834366,-500.0,0.00023999,2]
[316466423,1709491834375,-500.0,0.00023999,2]
[316466425,1709491834384,-500.0,0.00023999,2]
[316466427,1709491834393,-500.0,0.00023999,2]
[316466429,1709491834402,-500.0,0.00023999,2]
[316466431,1709491834412,-500.0,0.00023999,2]
[316466433,1709491834421,-500.0,0.00023999,2]
[316466435,1709491834430,-500.0,0.00023999,2]
[316466437,1709491834439,-500.0,0.00023999,2]
[316466439,1709491834448,-500.0,0.00023999,2]
[316466441,1709491834457,-500.0,0.00023999,2]
[316466443,1709491834469,-500.0,0.00023999,2]
[316466445,1709491834478,-500.0,0.00023999,2]
[316466447,1709491834487,-500.0,0.00023999,2]
[316466449,1709491834496,-500.0,0.00023999,2]
[316466451,1709491834504,-500.0,0.00023999,2]
[316466452,1709491834514,-500.0,0.00023999,2]
[316466454,1709491834523,-500.0,0.00023999,2]
[316466456,1709491834532,-500.0,0.00023999,2]
[316466458,1709491834541,-500.0,0.00023999,2]
[316466460,1709491834551,-500.0,0.00023999,2]
[316466462,1709491834560,-500.0,0.00023999,2]
[316466464,1709491834569,-500.0,0.00023999,2]
[316466466,1709491834579,-500.0,0.00023999,2]
[316466468,1709491834588,-500.0,0.00023999,2]
[316466470,1709491834597,-500.0,0.00023999,2]
[316466472,1709491834607,-521.86,0.00023999,2]
[316466474,1709491834616,-500.0,0.00023999,2]
[316466476,1709491834625,-500.0,0.00023999,2]
[316466478,1709491834633,-500.0,0.00023999,2]
[316466480,1709491834643,-500.0,0.00023999,2]
[316466482,1709491834652,-614.56868611,0.00023999,2]
[316466484,1709491834661,-381.73426278,0.00023999,2]
[316466486,1709491834671,-500.0,0.00023999,2]
[316466488,1709491834679,-500.0,0.00023999,2]
[316466490,1709491834689,-500.0,0.00023999,2]
[316466492,1709491834698,-500.0,0.00023999,2]
[316466493,1709491834707,-500.0,0.00023999,2]
[316466495,1709491834719,-500.0,0.00023999,2]
[316466497,1709491834728,-500.0,0.00023999,2]
[316466499,1709491834739,-500.0,0.00023999,2]
[316466501,1709491834750,-500.0,0.00023999,2]
[316466503,1709491834759,-500.0,0.00023999,2]
[316466505,1709491834768,-500.0,0.00023999,2]
[316466507,1709491834778,-500.0,0.00023999,2]
[316466509,1709491834787,-500.0,0.00023999,2]
[316466511,1709491834796,-448.18,0.00023999,2]
[316466513,1709491834806,-8979.39559165,0.00024,5]
[316466802,1709491838012,-500.0,0.00023997,2]
[316466804,1709491838022,-172.68140241,0.00023998,2]
[316466806,1709491838033,-327.31859759,0.00023998,2]
[316466808,1709491838042,-16760.19345743,0.00024,5]
[316466813,1709491838078,-1414341.51873634,0.00024,5]
[316466815,1709491838089,-1384.16289685,0.00024,5]
[316466817,1709491838101,-10549.48628499,0.00024,5]
[316466820,1709491838113,-775.68953518,0.00024,5]
[316466844,1709491841126,-1193.41616107,0.00024,5]
[316466845,1709491841138,-704.87272718,0.00024,5]
[316466895,1709491843088,-27750.74456939,0.00024,5]
[316467205,1709491846108,-444.07363701,0.00024,5]
[316467213,1709491846170,-12799.127973,0.00024,5]
[316467287,1709492579625,-155.04057156,0.00023012,5]
[316467298,1709492737613,330.92256878,0.00023012,5]
[316467304,1709492969104,-309.63023282,0.00019999,2]
[316467305,1709492969124,-3553.25233375,0.0002,2]
[316467337,1709493032246,-193.34493299,0.0002,2]
[316467338,1709493032256,-150.0,0.00020912,2]
[316467339,1709493032265,-782.7465794,0.00021,2]
[316467340,1709493032276,-1236.91602553,0.00021,2]
[316467341,1709493032287,-1315.65251719,0.00021,2]
[316467342,1709493032298,-674.85999156,0.00021,2]
[316467343,1709493032310,-2183.66968187,0.00021,2]
[316467356,1709493038227,-3295.93038693,0.00021,2]
[316467357,1709493038236,-166.666666,0.00021437,2]
[316467358,1709493038245,-928.29710438,0.0002188,2]
[316467359,1709493038286,-22821.83673572,0.0002188,2]
[316467360,1709493038296,-357.417172,0.0002195,2]
[316467361,1709493038306,-500.0,0.00022682,2]
[316467362,1709493038316,-200.0,0.000236,2]
[316467363,1709493038325,-643.60601187,0.00023717,2]
[316467364,1709493038334,-500.0,0.00023993,2]
[316467366,1709493038344,-3929.36297917,0.00023994,2]
[316467368,1709493038353,-155.32255549,0.00023998,2]
[316467370,1709493038363,-205.9357045,0.00023998,2]
[316467371,1709493038372,-155.9343067,0.00023998,2]
[316467373,1709493038381,-3238.75941718,0.00023998,2]
[316467375,1709493038390,-155.12254681,0.00023998,2]
[316467377,1709493038401,-317.44523282,0.00023998,2]
[316467379,1709493038411,-176.25741817,0.00023999,2]
[316467381,1709493038420,-500.0,0.00023999,2]
[316467383,1709493038429,-500.0,0.00023999,2]
[316467385,1709493038439,-500.0,0.00023999,2]
[316467387,1709493038449,-500.0,0.00023999,2]
[316467389,1709493038459,-500.0,0.00023999,2]
[316467391,1709493038468,-442.6,0.00023999,2]
[316467393,1709493038482,-1037801.77688979,0.00024,5]
[316467394,1709493038492,-686.08024275,0.00024,2]
[316467395,1709493038502,-174.0,0.00024,2]
[316467396,1709493038511,-175.5,0.00024,2]
[316467397,1709493038520,-102150.47548284,0.00024,5]
[316467398,1709493038530,-155.8352388,0.00024,2]
[316467399,1709493038539,-259296.17268368,0.00024,5]
[316467400,1709493038551,-685.49330367,0.00024,5]
[316467401,1709493038563,-566.9562609,0.00024,5]
[316467481,1709493043296,-37929.79546617,0.00024,5]
[316467483,1709493043307,-1250.25966196,0.00024,5]
[316467537,1709493068238,2071.92648534,0.00023012,5]
[316467579,1709493398143,840.47289866,0.00023012,5]
[316470134,1709493535081,2505.27,0.0002001,10]
[316471441,1709494035124,-317.44523282,0.00021872,2]
[316471442,1709494035145,-166.666666,0.00021873,2]
[316471443,1709494035165,-150.0,0.000219,2]
[316471444,1709494035184,-166.509719,0.00021917,2]
[316471445,1709494035204,-166.46955672,0.00021975,2]
[316471446,1709494035223,-157.1740432,0.00022039,2]
[316471447,1709494035242,-2195.71479226,0.0002204,2]
[316471752,1709494232558,-157.1740432,0.00022037,2]
[316471754,1709494232569,-317.44523282,0.00022038,2]
[316471756,1709494232578,-178.23420022,0.0002204,2]
[316471758,1709494232589,-1493.83200131,0.0002204,2]
[316471760,1709494232601,-346.1471541,0.0002204,2]
[316472341,1709494238411,-3140.14,0.0002204,2]
[316473328,1709494248801,-1833.30941431,0.0002204,2]
[316474914,1709495246143,-403.70686,0.00019933,2]
[316474926,1709495371154,-485.95503742,0.000189,2]
[316474927,1709495371175,-535.7623023,0.00019934,2]
[316474928,1709495371195,-1880.09255001,0.00019935,2]
[316474929,1709495371217,-317.44523282,0.00019936,2]
[316474930,1709495371237,-317.44523282,0.00019938,2]
[316474931,1709495371257,-166.666666,0.00020177,2]
[316474932,1709495371276,-496.067779,0.00020245,2]
[316474933,1709495371296,-300.0,0.00020275,2]
[316474934,1709495371316,-11623.7203199,0.00020276,2]
[316474935,1709495371336,-3000.0,0.00020316,2]
[316474936,1709495371356,-166.509718,0.00020371,2]
[316474937,1709495371376,-166.666666,0.00020864,2]
[316474938,1709495371395,-155.42129816,0.00021552,2]
[316474968,1709495432635,-11.24536784,0.00021552,2]
[316474969,1709495432644,-593.77264977,0.00021826,2]
[316474970,1709495432693,-26.34535773,0.00021826,2]
[316474971,1709495432702,-166.509719,0.00021831,2]
[316474972,1709495432711,-151.08743108,0.00021916,2]
[316474973,1709495432720,-6130.73270775,0.00022,2]
[316474974,1709495432729,-327.2688057,0.00022,2]
[316474975,1709495432738,-157.1740432,0.00022038,2]
[316474976,1709495432747,-686.08024275,0.0002204,2]
[316474977,1709495432756,-420.0,0.00022071,2]
[316474978,1709495432767,-166.666666,0.00022239,2]
[316474979,1709495432776,-10190.70362109,0.00022585,3]
[316474980,1709495432786,-733.06769672,0.00022585,2]
[316474981,1709495432796,-219.92030901,0.00022585,2]
[316474982,1709495432805,-578.94558954,0.00022585,2]
[316475031,1709495441713,-27.39204034,0.00022585,2]
[316475032,1709495441725,-233.32485677,0.00022917,2]
[316475033,1709495441736,-500.81651721,0.00022917,2]
[316475034,1709495441747,-620.00590037,0.00022918,2]
[316475035,1709495441758,-166.666666,0.00022927,2]
[316475036,1709495441770,-153.0,0.00022978,2]
[316475037,1709495441781,-254.51664935,0.00023005,5]
[316475038,1709495441792,-887.96849371,0.00023009,5]
[316475039,1709495441803,-500.0,0.0002304,2]
[316475040,1709495441814,-500.0,0.0002304,2]
[316475041,1709495441824,-153.0,0.00023041,2]
[316475042,1709495441835,-153.0,0.00023041,2]
[316475043,1709495441847,-153.0,0.00023041,2]
[316475044,1709495441861,-153.0,0.00023041,2]
[316475045,1709495441871,-153.0,0.00023041,2]
[316475046,1709495441881,-153.0,0.00023041,2]
[316475047,1709495441893,-153.0,0.00023041,2]
[316475048,1709495441903,-153.0,0.00023041,2]
[316475049,1709495441913,-153.0,0.00023041,2]
[316475050,1709495441924,-153.2147094,0.00023178,2]
[316475051,1709495441935,-153.2409128,0.00023178,2]
[316475052,1709495441946,-401.4017028,0.00023178,2]
[316475053,1709495441956,-153.0,0.00023178,2]
[316475054,1709495441967,-153.0,0.00023178,2]
[316475055,1709495441979,-153.0,0.00023178,2]
[316475056,1709495441990,-153.0,0.00023178,2]
[316475057,1709495442000,-153.0,0.00023178,2]
[316475058,1709495442011,-153.0,0.00023178,2]
[316475059,1709495442022,-153.0,0.00023178,2]
[316475060,1709495442033,-153.4110428,0.00023178,2]
[316475061,1709495442044,-153.0,0.00023178,2]
[316475062,1709495442054,-200.7739089,0.00023178,2]
[316475063,1709495442065,-153.0,0.00023178,2]
[316475064,1709495442075,-153.0,0.00023178,2]
[316475065,1709495442084,-153.0,0.00023178,2]
[316475066,1709495442094,-153.0,0.00023178,2]
[316475067,1709495442104,-200.7739089,0.00023178,2]
[316475068,1709495442114,-153.0,0.00023178,2]
[316475069,1709495442126,-153.0,0.00023178,2]
[316475070,1709495442137,-153.0,0.00023178,2]
[316475071,1709495442148,-153.0,0.00023178,2]
[316475072,1709495442159,-200.7739089,0.00023178,2]
[316475073,1709495442170,-200.7739089,0.00023178,2]
[316475074,1709495442183,-153.0,0.00023178,2]
[316475075,1709495442194,-153.0,0.00023178,2]
[316475076,1709495442206,-153.0,0.00023178,2]
[316475077,1709495442217,-153.0,0.00023178,2]
[316475078,1709495442228,-200.7739089,0.00023178,2]
[316475079,1709495442238,-153.0,0.00023178,2]
[316475080,1709495442249,-200.7739089,0.00023178,2]
[316475081,1709495442260,-153.0,0.00023178,2]
[316475082,1709495442272,-153.0,0.00023178,2]
[316475083,1709495442282,-153.0,0.00023178,2]
[316475084,1709495442293,-200.7739089,0.00023178,2]
[316475085,1709495442305,-153.0,0.00023178,2]
[316475086,1709495442314,-153.0,0.00023178,2]
[316475087,1709495442327,-200.0,0.000234,2]
[316475088,1709495442338,-153.0,0.00023452,2]
[316475089,1709495442350,-153.0,0.00023452,2]
[316475090,1709495442360,-153.0,0.00023452,2]
[316475091,1709495442371,-306.4522704,0.00023452,2]
[316475092,1709495442382,-124.27654987,0.00023671,2]
[316475093,1709495442397,-28.72345013,0.00023671,2]
[316475094,1709495442408,-500.0,0.00023777,2]
[316475095,1709495442418,-500.0,0.00023777,2]
[316475096,1709495442429,-500.0,0.00023777,2]
[316475097,1709495442439,-500.0,0.00023777,2]
[316475098,1709495442449,-500.0,0.00023777,2]
[316475099,1709495442459,-500.0,0.00023777,2]
[316475100,1709495442469,-500.0,0.00023777,2]
[316475101,1709495442479,-210.6345915,0.00023778,2]
[316475109,1709495444797,-1880.09255001,0.00022916,2]
[316475110,1709495444806,-153.0,0.00023041,2]
[316475111,1709495444816,-200.7739089,0.00023178,2]
[316475112,1709495444825,-153.0,0.00023178,2]
[316475113,1709495444835,-153.0,0.000235,2]
[316475114,1709495444849,-410.54865838,0.00023778,2]
[316475115,1709495444858,-200.7739089,0.000238,2]
[316475116,1709495444868,-349.6153443,0.000238,2]
[316475117,1709495444878,-153.0,0.000238,2]
[316475118,1709495444887,-485.03234632,0.00023899,2]
[316475119,1709495444896,-485.0323463,0.00023899,2]
[316475120,1709495444907,-17.19454164,0.000239,2]
[316475129,1709495450216,-396.13556191,0.00022588,2]
[316475130,1709495450226,-467.83780466,0.000239,2]
[316475131,1709495450236,-485.0323463,0.000239,2]
[316475132,1709495450246,-151.0,0.000239,2]
[316475133,1709495450255,-1790.12688823,0.000239,2]
[316475134,1709495450265,-485.95503742,0.000239,2]
[316475135,1709495450275,-485.0323463,0.000239,2]
[316475136,1709495450284,-500.0,0.00023973,2]
[316475137,1709495450294,-500.0,0.00023973,2]
[316475138,1709495450304,-500.0,0.00023973,2]
[316475139,1709495450313,-501.2410921,0.00023973,2]
[316475140,1709495450322,-635.34700997,0.00023973,2]
[316475141,1709495450332,-263.61463655,0.00023973,2]
[316475142,1709495450342,-500.0,0.00023973,2]
[316475143,1709495450351,-500.0,0.00023973,2]
[316475144,1709495450361,-500.0,0.00023973,2]
[316475145,1709495450370,-500.0,0.00023973,2]
[316475146,1709495450380,-500.0,0.00023973,2]
[316475148,1709495450389,-500.0,0.00023973,2]
[316475149,1709495450398,-500.0,0.00023973,2]
[316475150,1709495450407,-164.74,0.00023973,2]
[316475151,1709495450416,-500.0,0.00023973,2]
[316475152,1709495450426,-500.0,0.00023973,2]
[316475153,1709495450435,-500.0,0.00023973,2]
[316475154,1709495450444,-500.0,0.00023973,2]
[316475155,1709495450453,-500.0,0.00023973,2]
[316475156,1709495450463,-8234.00193465,0.00023974,2]
[316475157,1709495450472,-1790.12688823,0.00023986,2]
[316475158,1709495450482,-298.26,0.00023988,3]
[316475159,1709495450491,-500.0,0.00023997,2]
[316475160,1709495450501,-500.0,0.00023997,2]
[316475161,1709495450510,-500.0,0.00023997,2]
[316475162,1709495450519,-500.0,0.00023997,2]
[316475163,1709495450529,-500.0,0.00023997,2]
[316475164,1709495450539,-500.0,0.00023997,2]
[316475165,1709495450548,-500.0,0.00023997,2]
[316475166,1709495450558,-500.0,0.00023997,2]
[316475167,1709495450568,-156.0715124,0.00023998,2]
[316475168,1709495450577,-155.12409928,0.00023998,2]
[316475169,1709495450587,-557.72315857,0.00023998,2]
[316475170,1709495450597,-155.12409928,0.00023998,2]
[316475171,1709495450606,-448.44072245,0.00023998,2]
[316475172,1709495450615,-238.53127687,0.00023998,2]
[316475173,1709495450625,-15928.06357623,0.00023998,2]
[316475174,1709495450634,-926.94993445,0.00023998,2]
[316475175,1709495450643,-158.07368737,0.00023998,2]
[316475176,1709495450653,-240.55502775,0.00023998,2]
[316475177,1709495450662,-155.52064643,0.00023998,2]
[316475178,1709495450672,-155.31370596,0.00023998,2]
[316475179,1709495450682,-194.47153036,0.00023998,2]
[316475180,1709495450691,-2433.05863856,0.00023998,2]
[316475181,1709495450700,-155.08219356,0.00023998,2]
[316475182,1709495450710,-155.08219356,0.00023998,2]
[316475183,1709495450720,-500.0,0.00023998,2]
[316475184,1709495450729,-500.0,0.00023998,2]
[316475185,1709495450739,-1184.92812732,0.00023998,2]
[316475186,1709495450748,-500.0,0.00023998,2]
[316475187,1709495450758,-500.0,0.00023998,2]
[316475188,1709495450767,-500.0,0.00023998,2]
[316475189,1709495450777,-473.87,0.00023998,2]
[316475190,1709495450786,-233.40057603,0.00023998,2]
[316475191,1709495450797,-500.0,0.00023998,2]
[316475192,1709495450806,-6913.605584,0.00023998,2]
[316475193,1709495450815,-500.0,0.00023998,2]
[316475194,1709495450824,-535.7623023,0.00023998,2]
[316475195,1709495450834,-500.0,0.00023998,2]
[316475196,1709495450847,-327.2688057,0.00023998,2]
[316475197,1709495450857,-157.1740432,0.00023998,2]
[316475198,1709495450866,-500.0,0.00023999,2]
[316475199,1709495450876,-500.0,0.00023999,2]
[316475200,1709495450886,-500.0,0.00023999,2]
[316475201,1709495450896,-478.1902784,0.00023999,2]
[316475202,1709495450905,-500.0,0.00023999,2]
[316475203,1709495450914,-500.0,0.00023999,2]
[316475204,1709495450924,-500.0,0.00023999,2]
[316475205,1709495450938,-291.35,0.00023999,2]
[316475206,1709495450948,-500.0,0.00023999,2]
[316475207,1709495450957,-500.0,0.00023999,2]
[316475208,1709495450967,-500.0,0.00023999,2]
[316475209,1709495450976,-500.0,0.00023999,2]
[316475210,1709495450987,-500.0,0.00023999,2]
[316475211,1709495450996,-500.0,0.00023999,2]
[316475212,1709495451007,-500.0,0.00023999,2]
[316475213,1709495451016,-390.95904468,0.00023999,2]
[316475214,1709495451026,-500.0,0.00023999,2]
[316475215,1709495451035,-500.0,0.00023999,2]
[316475216,1709495451045,-500.0,0.00023999,2]
[316475217,1709495451055,-500.0,0.00023999,2]
[316475218,1709495451064,-500.0,0.00023999,2]
[316475219,1709495451073,-500.0,0.00023999,2]
[316475220,1709495451082,-500.0,0.00023999,2]
[316475221,1709495451092,-169.4,0.00023999,2]
[316475222,1709495451101,-500.0,0.00023999,2]
[316475223,1709495451110,-500.0,0.00023999,2]
[316475224,1709495451119,-500.0,0.00023999,2]
[316475225,1709495451129,-500.0,0.00023999,2]
[316475226,1709495451138,-245.3,0.00023999,2]
[316475227,1709495451147,-500.0,0.00023999,2]
[316475228,1709495451156,-500.0,0.00023999,2]
[316475229,1709495451166,-500.0,0.00023999,2]
[316475230,1709495451175,-500.0,0.00023999,2]
[316475231,1709495451185,-500.0,0.00023999,2]
[316475232,1709495451195,-500.0,0.00023999,2]
[316475233,1709495451204,-500.0,0.00023999,2]
[316475234,1709495451213,-500.0,0.00023999,2]
[316475235,1709495451222,-527.64720022,0.00023999,2]
[316475236,1709495451232,-500.0,0.00023999,2]
[316475237,1709495451242,-500.0,0.00023999,2]
[316475238,1709495451251,-500.0,0.00023999,2]
[316475239,1709495451260,-500.0,0.00023999,2]
[316475240,1709495451270,-500.0,0.00023999,2]
[316475241,1709495451280,-500.0,0.00023999,2]
[316475242,1709495451290,-331.2563515,0.00023999,2]
[316475243,1709495451299,-74394.85081446,0.00024,5]
[316475244,1709495451313,-12956.28400691,0.00024,5]
[316475341,1709496441135,-195.29659333,0.0002106,2]
[316475342,1709496443141,-52.73729567,0.0002106,2]
[316475343,1709496443166,-154.92253873,0.00021111,2]
[316475344,1709496443186,-154.92253873,0.00021111,2]
[316475345,1709496443208,-114.42253904,0.00021112,2]
[316475353,1709496560105,-154.93802479,0.00019012,2]
[316475386,1709496631827,-7.04698768,0.00019012,2]
[316475387,1709496631838,-1880.09255001,0.00021117,2]
[316475388,1709496631847,-643.65607414,0.00021118,2]
[316475389,1709496631857,-302.64021709,0.0002112,2]
[316475390,1709496631866,-15932.10569437,0.00021227,2]
[316475391,1709496631875,-166.71132,0.00021228,2]
[316475392,1709496631884,-155.8352388,0.00021552,2]
[316475393,1709496631894,-404.10451927,0.000218,2]
[316475394,1709496631903,-166.46955671,0.00022484,2]
[316475395,1709496631915,-153.0,0.000225,2]
[316475396,1709496631924,-200.7739089,0.000225,2]
[316475397,1709496631934,-740.41830997,0.00022593,2]
[316475398,1709496631943,-222.12549299,0.00022593,2]
[316475399,1709496632039,-502.66871217,0.00022603,2]
[316475400,1709496632049,-183.39629969,0.00022603,2]
[316475401,1709496632058,-500.0,0.00022917,2]
[316475402,1709496632067,-500.0,0.00022917,2]
[316475403,1709496632076,-500.0,0.00022917,2]
[316475404,1709496632086,-500.0,0.00022917,2]
[316475405,1709496632095,-13876.19699957,0.00023,2]
[316475406,1709496632104,-500.0,0.00023002,2]
[316475407,1709496632113,-500.0,0.00023003,2]
[316475408,1709496632122,-500.0,0.00023003,2]
[316475409,1709496632131,-500.0,0.00023003,2]
[316475410,1709496632141,-500.0,0.00023003,2]
[316475411,1709496632150,-500.0,0.00023003,2]
[316475412,1709496632159,-500.0,0.00023004,2]
[316475413,1709496632168,-500.0,0.00023004,2]
[316475414,1709496632178,-500.0,0.00023004,2]
[316475415,1709496632187,-500.0,0.00023004,2]
[316475416,1709496632201,-500.53468107,0.00023004,2]
[316475418,1709496632210,-500.0,0.00023004,2]
[316475419,1709496632219,-500.0,0.00023004,2]
[316475420,1709496632228,-500.0,0.00023004,2]
[316475421,1709496632238,-500.0,0.00023004,2]
[316475422,1709496632247,-500.0,0.00023004,2]
[316475423,1709496632256,-500.0,0.00023004,2]
[316475424,1709496632265,-2946.31489908,0.00023005,5]
[316475425,1709496632276,-153.0,0.00023078,2]
[316475426,1709496632286,-200.7739089,0.00023078,2]
[316475427,1709496632295,-156.3960838,0.00023141,2]
[316475428,1709496632305,-200.7739089,0.00023178,2]
[316475429,1709496632314,-200.7739089,0.00023178,2]
[316475430,1709496632323,-200.7739089,0.00023178,2]
[316475431,1709496632332,-200.7739089,0.00023178,2]
[316475432,1709496632341,-200.7739089,0.00023178,2]
[316475433,1709496632350,-200.7739089,0.00023178,2]
[316475434,1709496632359,-196.0746337,0.00023178,2]
[316475435,1709496632368,-153.0,0.00023178,2]
[316475436,1709496632377,-153.0,0.00023178,2]
[316475437,1709496632386,-153.0,0.00023178,2]
[316475438,1709496632394,-200.7739089,0.00023178,2]
[316475439,1709496632404,-200.7739089,0.00023178,2]
[316475440,1709496632414,-153.0,0.00023178,2]
[316475441,1709496632423,-153.0,0.00023178,2]
[316475442,1709496632432,-153.0,0.00023178,2]
[316475443,1709496632441,-153.0,0.00023178,2]
[316475444,1709496632450,-200.7739089,0.00023178,2]
[316475445,1709496632459,-153.0,0.00023178,2]
[316475446,1709496632468,-200.7739089,0.00023178,2]
[316475447,1709496632478,-200.7739089,0.00023178,2]
[316475448,1709496632487,-153.0,0.00023278,2]
[316475449,1709496632496,-200.7739089,0.00023278,2]
[316475450,1709496632506,-153.0,0.00023278,2]
[316475451,1709496632515,-153.0,0.00023278,2]
[316475452,1709496632524,-200.0,0.000233,2]
[316475453,1709496632533,-165.287405,0.00023505,2]
[316475454,1709496632543,-1432.10151062,0.000239,2]
[316475455,1709496632552,-1432.10151058,0.00023987,2]
[316475456,1709496632561,-434.3561785,0.00023997,2]
[316475457,1709496632570,-475.98247214,0.00023998,2]
[316475458,1709496632580,-276.18336675,0.00023998,2]
[316475459,1709496632588,-277.34596352,0.00023998,2]
[316475460,1709496632597,-238.53127687,0.00023998,2]
[316475461,1709496632607,-926.94993445,0.00023998,2]
[316475462,1709496632616,-661.5228741,0.00023998,2]
[316475463,1709496632625,-220.5995457,0.00023998,2]
[316475464,1709496632634,-4449.56327039,0.00023998,2]
[316475465,1709496632643,-178.05126029,0.00023998,2]
[316475466,1709496632653,-538.27532223,0.00023998,2]
[316475467,1709496632662,-155.12254681,0.00023998,2]
[316475468,1709496632671,-155.9343067,0.00023998,2]
[316475469,1709496632680,-176.25741817,0.00023998,2]
[316475470,1709496632690,-190.0,0.00023998,2]
[316475471,1709496632699,-291.44480997,0.00023998,2]
[316475472,1709496632708,-3929.36297917,0.00023998,2]
[316475473,1709496632717,-248.65529344,0.00023998,2]
[316475474,1709496632727,-500.0,0.00023998,2]
[316475475,1709496632736,-155.55206577,0.00023998,2]
[316475476,1709496632745,-206.16521478,0.00023998,2]
[316475477,1709496632754,-500.0,0.00023998,2]
[316475478,1709496632763,-500.0,0.00023998,2]
[316475479,1709496632774,-290.08429773,0.00023999,2]
[316475480,1709496632783,-2500.0,0.00023999,2]
[316475481,1709496632793,-416.89775579,0.00023999,2]
[316475482,1709496632802,-500.0,0.00023999,2]